bitfinex/quotes_SOLUSD_20250413
["timestamp","ask_amount","ask_price","bid_price","bid_amount"]
[1744522743471,13.86143003,130.07,130.02,29.15543003]
[1744522743976,21.54923003,130.08,130.03,13.86143003]
[1744522745561,1.5455,130.1,130.03,21.55183003]
[1744522745766,13.86143003,130.09,130.04,13.86143003]
[1744522746180,94.86143003,130.11,130.05,13.86143003]
[1744522746365,94.86143003,130.11,130.06,13.86143003]
[1744522746563,81.0,130.11,130.06,13.86143003]
[1744522746775,13.86143003,130.1,130.05,13.86143003]
[1744522747584,13.86143003,130.1,130.05,21.55023003]
[1744522748757,13.86143003,130.1,130.06,21.54983003]
[1744522748962,102.54733003,130.11,130.06,21.54983003]
[1744522749369,97.55924238,130.11,130.06,16.56174238]
[1744522753070,8.87334238,130.1,130.05,16.56264238]
[1744522753881,8.87334238,130.09,130.05,7.6893]
[1744522754280,8.87334238,130.08,130.04,9.0501]
[1744522754875,8.87334238,130.07,130.02,16.62724238]
[1744522755094,16.56264238,130.05,130.02,0.063]
[1744522755387,7.6893,130.05,130.02,0.063]
[1744522755890,16.56234238,130.06,130.02,0.063]
[1744522756083,8.87334238,130.08,130.03,8.87334238]
[1744522756472,8.87334238,130.07,130.02,8.93634238]
[1744522757082,8.87334238,130.06,130.02,0.063]
[1744522757396,8.87334238,130.05,130.02,0.063]
[1744522758203,16.56304238,130.05,130.02,0.063]
[1744522760393,8.87334238,130.04,130.02,0.063]
[1744522761818,7.6897,130.05,130.02,0.063]
[1744522761970,8.87334238,130.04,130.02,0.063]
[1744522762289,8.22914238,130.04,130.02,0.063]
[1744522762795,15.91924238,130.04,130.02,0.063]
[1744522767108,8.22914238,130.04,130.02,0.063]
[1744522767298,16.56294238,130.05,130.02,0.063]
[1744522770510,81.0,130.07,130.02,0.063]
[1744522770707,89.87334238,130.07,130.02,8.93634238]
[1744522771012,81.0,130.07,130.03,8.87334238]
[1744522771311,16.56024238,130.09,130.03,8.87334238]
[1744522771490,7.6869,130.09,130.04,8.87334238]
[1744522771687,16.56024238,130.09,130.04,8.87334238]
[1744522772304,7.6869,130.09,130.05,8.87334238]
[1744522772611,16.56024238,130.09,130.04,8.87334238]
[1744522772907,8.87334238,130.08,130.03,7.6905]
[1744522773109,8.87334238,130.08,130.03,16.56384238]
[1744522773408,7.6869,130.09,130.04,16.56314238]
[1744522773596,16.56024238,130.09,130.04,16.56314238]
[1744522774219,16.56024238,130.09,130.04,7.6898]
[1744522774512,8.87334238,130.08,130.04,7.6898]
[1744522774909,8.87334238,130.05,130.02,1.6597]
[1744522775092,8.87334238,130.04,130.02,0.063]
[1744522775403,8.87334238,130.05,130.02,0.063]
[1744522777298,16.56294238,130.05,130.02,0.063]
[1744522777607,8.87334238,130.04,130.02,0.063]
[1744522777812,8.87334238,130.03,130.02,0.063]
[1744522779497,16.56384238,130.03,130.02,0.063]
[1744522783102,7.6905,130.03,130.02,0.063]
[1744522783301,16.56264238,130.05,130.02,0.063]
[1744522783493,88.689,130.06,130.02,0.063]
[1744522784193,97.56234238,130.06,130.02,0.063]
[1744522784509,88.689,130.06,130.02,0.063]
[1744522784899,8.87334238,130.03,130.02,0.063]
[1744522786209,16.56384238,130.03,130.02,0.063]
[1744522787402,21.57365661,130.03,130.02,0.063]
[1744522788614,13.88315661,130.03,130.02,0.063]
[1744522789409,81.0,130.06,130.02,0.063]
[1744522789410,88.689,130.06,130.02,0.063]
[1744522790302,102.57215661,130.06,130.02,0.063]
[1744522790601,81.0,130.06,130.02,13.94615661]
[1744522791306,13.88315661,130.09,130.04,13.88315661]
[1744522792313,13.88315661,130.09,130.04,21.57295661]
[1744522792314,21.57025661,130.09,130.04,21.57295661]
[1744522793305,7.6871,130.09,130.05,13.88315661]
[1744522795916,21.56955661,130.1,130.05,21.57225661]
[1744522796108,7.6864,130.1,130.06,13.88315661]
[1744522797424,81.03,130.11,130.07,13.88315661]
[1744522797725,0.03,130.11,130.08,13.88315661]
[1744522798100,0.03,130.11,130.09,13.88315661]
[1744522798306,0.03,130.11,130.09,21.57005661]
[1744522801628,0.03,130.11,130.1,13.88315661]
[1744522801834,0.03,130.11,130.1,40.73369018]
[1744522802205,0.03,130.11,130.1,48.25369018]
[1744522802731,0.03,130.11,130.1,55.93999018]
[1744522803827,0.03,130.12,130.11,19.07613357]
[1744522804022,0.03,130.12,130.11,32.95929018]
[1744522804627,0.03,130.12,130.11,13.88315661]
[1744522804829,0.03,130.12,130.11,21.56895661]
[1744522805127,0.03,130.12,130.11,40.64509018]
[1744522809029,0.03,130.13,130.12,19.07613357]
[1744522809239,0.03,130.13,130.12,32.95929018]
[1744522809728,0.03,130.13,130.12,40.64449018]
[1744522810352,0.03,130.14,130.12,40.64449018]
[1744522810639,0.03,130.14,130.13,34.59579018]
[1744522811013,0.03,130.15,130.14,0.28432314]
[1744522811312,0.03,130.15,130.13,1.6365]
[1744522811521,0.03,130.15,130.14,39.88315661]
[1744522811737,0.03,130.15,130.14,58.95929018]
[1744522811906,0.03,130.15,130.14,66.64329018]
[1744522812813,0.03,130.15,130.14,47.56715661]
[1744522813815,0.03,130.15,130.14,66.64329018]
[1744522814028,0.03,130.15,130.14,47.56715661]
[1744522814931,0.03,130.15,130.14,39.88315661]
[1744522815140,0.03,130.15,130.12,21.56805661]
[1744522815632,0.03,130.15,130.13,13.88315661]
[1744522816140,0.03,130.15,130.1,286.69]
[1744522816327,13.91315661,130.15,130.1,292.72925661]
[1744522816515,0.03,130.15,130.11,13.88315661]
[1744522817734,0.03,130.15,130.11,21.56885661]
[1744522817945,0.03,130.15,130.13,13.88315661]
[1744522818148,0.03,130.15,130.14,13.88315661]
[1744522818744,0.03,130.15,130.12,13.88315661]
[1744522818932,0.03,130.15,130.13,13.88315661]
[1744522819325,0.03,130.15,130.1,278.8463]
[1744522819530,0.03,130.15,130.11,13.88315661]
[1744522820023,0.03,130.15,130.1,29.08945661]
[1744522820255,0.03,130.15,130.11,13.88315661]
[1744522820555,0.03,130.15,130.12,13.88315661]
[1744522820854,0.03,130.15,130.1,15.2063]
[1744522821032,0.03,130.15,130.12,13.88315661]
[1744522822734,0.03,130.15,130.11,7.6852]
[1744522822942,0.03,130.15,130.14,13.88315661]
[1744522824539,0.03,130.15,130.13,13.88315661]
[1744522826344,0.03,130.15,130.13,21.56765661]
[1744522826643,0.03,130.15,130.14,13.88315661]
[1744522826942,0.03,130.15,130.13,21.56765661]
[1744522827442,0.03,130.15,130.13,13.88315661]
[1744522827843,0.03,130.15,130.14,13.88315661]
[1744522828046,0.03,130.15,130.13,13.88315661]
[1744522829143,0.03,130.15,130.12,7.6848]
[1744522829356,0.03,130.15,130.12,21.56795661]
[1744522829642,0.03,130.15,130.12,7.6848]
[1744522829847,0.03,130.15,130.12,21.56795661]
[1744522830144,0.03,130.15,130.11,21.56885661]
[1744522830526,0.03,130.15,130.11,13.88315661]
[1744522830835,0.03,130.15,130.11,21.56875661]
[1744522831241,0.03,130.15,130.11,16.55148242]
[1744522831458,0.03,130.15,130.11,8.86588242]
[1744522831956,8.86588242,130.13,130.1,7.52]
[1744522832642,8.86588242,130.13,130.08,8.86588242]
[1744522833042,8.86588242,130.13,130.09,8.86588242]
[1744522833348,7.6846,130.13,130.09,8.86588242]
[1744522834526,8.86588242,130.12,130.07,16.61688242]
[1744522835456,13.86075866,130.13,130.08,13.86075866]
[1744522835625,13.86075866,130.13,130.08,21.54815866]
[1744522836657,7.684,130.14,130.08,21.54815866]
[1744522836870,15.4788,130.15,130.11,13.86075866]
[1744522837032,0.03,130.15,130.12,13.86075866]
[1744522837557,0.03,130.15,130.13,13.86075866]
[1744522837746,0.03,130.15,130.12,13.86075866]
[1744522841044,0.03,130.15,130.11,21.54615866]
[1744522841440,13.86075866,130.13,130.1,7.5]
[1744522841871,13.86075866,130.13,130.08,21.54785866]
[1744522842053,13.86075866,130.14,130.09,13.86075866]
[1744522842857,21.54535866,130.13,130.08,13.86075866]
[1744522843652,7.6846,130.13,130.08,13.86075866]
[1744522843955,0.03,130.15,130.12,13.86075866]
[1744522844139,0.03,130.15,130.13,13.86075866]
[1744522844342,0.03,130.15,130.14,13.86075866]
[1744522846156,0.03,130.15,130.14,21.54475866]
[1744522847455,0.03,130.15,130.14,13.86075866]
[1744522847660,0.03,130.15,130.13,21.54515866]
[1744522848162,0.03,130.15,130.13,7.6844]
[1744522848347,0.03,130.15,130.13,21.54515866]
[1744522848656,0.03,130.15,130.14,21.54475866]
[1744522848857,0.03,130.15,130.14,40.62089223]
[1744522850162,0.03,130.15,130.14,21.54475866]
[1744522851154,0.03,130.15,130.14,40.62089223]
[1744522852158,0.0001,130.15,130.14,40.62089223]
[1744522855673,0.0001,130.15,130.14,21.54475866]
[1744522856467,0.0001,130.15,130.11,9.0787]
[1744522856770,0.0001,130.15,130.14,13.86075866]
[1744522857567,0.0001,130.15,130.14,21.54475866]
[1744522858870,0.0001,130.15,130.14,13.86075866]
[1744522859075,0.0001,130.15,130.12,13.86075866]
[1744522859767,0.0001,130.15,130.11,21.36075866]
[1744522859966,0.0001,130.15,130.11,7.5]
[1744522859967,13.86085866,130.15,130.11,7.5]
[1744522860474,13.86075866,130.13,130.08,13.92375866]
[1744522860878,13.86075866,130.12,130.08,0.063]
[1744522861249,13.86075866,130.13,130.08,21.61115866]
[1744522861743,21.54545866,130.13,130.08,21.61115866]
[1744522863687,7.6835,130.15,130.08,21.61115866]
[1744522863862,13.86075866,130.13,130.08,21.61115866]
[1744522864069,13.86075866,130.13,130.09,13.86075866]
[1744522864254,13.86075866,130.14,130.09,13.86075866]
[1744522864456,7.6835,130.15,130.12,13.86075866]
[1744522864457,0.0001,130.15,130.12,13.86075866]
[1744522864772,0.0001,130.15,130.14,13.86075866]
[1744522865778,0.0001,130.15,130.14,21.54475866]
[1744522868759,0.0001,130.15,130.13,7.6844]
[1744522868964,0.0001,130.15,130.14,13.86075866]
[1744522870177,0.0001,130.15,130.14,21.54475866]
[1744522871675,0.0001,130.15,130.14,40.62089223]
[1744522873476,0.0001,130.15,130.14,7.684]
[1744522873674,0.0001,130.15,130.14,21.54475866]
[1744522876476,0.0001,130.15,130.12,7.5]
[1744522876905,0.0001,130.15,130.12,15.1851]
[1744522877060,0.0001,130.15,130.12,7.5]
[1744522878282,21.54575866,130.13,130.08,15.2503]
[1744522878462,13.86075866,130.12,130.08,7.563]
[1744522878658,13.86075866,130.11,130.08,7.563]
[1744522878862,13.86075866,130.09,130.08,0.063]
[1744522879776,21.75615866,130.09,130.08,0.063]
[1744522880668,7.8954,130.09,130.08,0.063]
[1744522881384,15.5823,130.09,130.08,0.063]
[1744522881694,29.44305866,130.09,130.08,0.063]
[1744522882872,48.37703066,130.09,130.08,0.063]
[1744522883390,18.933972,130.08,130.07,0.063]
[1744522883695,44.933972,130.06,130.05,0.063]
[1744522883993,58.79473066,130.06,130.05,0.063]
[1744522884490,66.48343066,130.06,130.05,0.063]
[1744522885885,47.54945866,130.06,130.05,0.063]
[1744522888093,81.0,130.07,130.05,0.063]
[1744522889491,94.86075866,130.07,130.05,0.063]
[1744522890890,81.0,130.07,130.05,0.063]
[1744522892179,21.54875866,130.08,130.05,0.063]
[1744522892382,13.86075866,130.08,130.05,0.063]
[1744522892576,21.54785866,130.09,130.05,0.063]
[1744522895902,13.86075866,130.08,130.05,0.063]
[1744522897601,21.54785866,130.09,130.05,0.063]
[1744522898286,13.86075866,130.08,130.05,0.063]
[1744522899089,21.54785866,130.09,130.05,0.063]
[1744522899300,7.6871,130.09,130.05,0.063]
[1744522899514,21.54785866,130.09,130.05,0.063]
[1744522902087,21.54855866,130.08,130.05,0.063]
[1744522902483,99.933972,130.11,130.05,13.92375866]
[1744522902484,81.0,130.11,130.05,13.92375866]
[1744522902788,13.86075866,130.13,130.07,13.86075866]
[1744522902996,0.0001,130.15,130.09,13.86075866]
[1744522903197,13.86075866,130.14,130.09,13.86075866]
[1744522904291,21.54505866,130.14,130.09,13.86075866]
[1744522904882,13.86075866,130.12,130.07,7.6879]
[1744522905389,13.86075866,130.12,130.07,21.54865866]
[1744522905798,13.86075866,130.11,130.07,7.6879]
[1744522906519,21.54605866,130.12,130.07,7.6879]
[1744522907120,13.86075866,130.11,130.06,29.02925866]
[1744522907293,13.86075866,130.1,130.06,15.1685]
[1744522907498,13.86075866,130.11,130.06,29.02925866]
[1744522907820,21.54665866,130.11,130.06,29.02925866]
[1744522909321,26.617972,130.14,130.06,29.02925866]
[1744522909500,13.86075866,130.11,130.06,29.02925866]
[1744522911019,21.54655866,130.11,130.06,29.02925866]
[1744522914020,7.6858,130.11,130.06,29.02925866]
[1744522914518,7.6858,130.11,130.07,13.86075866]
[1744522914695,19.2089,130.15,130.07,13.86075866]
[1744522914696,13.86075866,130.13,130.08,13.86075866]
[1744522915513,19.2089,130.15,130.08,13.86075866]
[1744522915796,13.86075866,130.13,130.08,13.86075866]
[1744522916000,21.54575866,130.13,130.07,21.54885866]
[1744522916518,21.54575866,130.13,130.08,13.86075866]
[1744522916725,21.54575866,130.13,130.07,7.6881]
[1744522916940,21.54575866,130.13,130.07,21.54885866]
[1744522917903,13.86075866,130.12,130.07,21.54885866]
[1744522919532,0.0001,130.15,130.08,13.86075866]
[1744522919710,13.86075866,130.13,130.08,13.86075866]
[1744522920106,13.86075866,130.14,130.09,13.86075866]
[1744522920936,7.684,130.14,130.09,21.54765866]
[1744522921309,21.54475866,130.14,130.09,21.54765866]
[1744522921507,13.86075866,130.13,130.09,7.6869]
[1744522923550,0.0001,130.15,130.1,13.86075866]
[1744522923736,0.0001,130.15,130.12,13.86075866]
[1744522924112,13.86075866,130.13,130.1,8.0588]
[1744522924332,13.86075866,130.12,130.1,1.5673]
[1744522924539,13.86075866,130.11,130.07,8.0588]
[1744522924839,13.86075866,130.1,130.07,8.0588]
[1744522925039,13.86075866,130.11,130.07,8.0588]
[1744522925222,13.86075866,130.12,130.07,21.91955866]
[1744522925415,8.8705654,130.09,130.07,8.0588]
[1744522925617,8.8705654,130.09,130.07,1.5673]
[1744522925810,8.8705654,130.1,130.07,1.5673]
[1744522927314,13.86548495,130.1,130.07,1.5673]
[1744522928323,13.86548495,130.08,130.05,0.063]
[1744522928522,13.86548495,130.07,130.05,0.063]
[1744522929437,21.55368495,130.07,130.05,0.063]
[1744522929628,13.86548495,130.06,130.05,0.063]
[1744522930048,21.55368495,130.07,130.05,0.063]
[1744522931154,13.86548495,130.06,130.05,0.063]
[1744522932429,7.6877,130.08,130.05,0.063]
[1744522932742,7.6872,130.09,130.05,0.063]
[1744522933142,21.55268495,130.09,130.05,0.063]
[1744522935356,13.86548495,130.08,130.05,0.063]
[1744522936236,7.6872,130.09,130.05,0.063]
[1744522936443,7.6858,130.11,130.06,13.86548495]
[1744522936632,21.55128495,130.11,130.06,13.86548495]
[1744522937348,21.55128495,130.11,130.06,21.55408495]
[1744522938845,13.86548495,130.12,130.06,21.55408495]
[1744522939025,13.86548495,130.12,130.07,15.52138495]
[1744522939228,13.86548495,130.14,130.09,13.86548495]
[1744522939531,13.86548495,130.13,130.08,13.86548495]
[1744522939725,0.0001,130.15,130.07,15.52138495]
[1744522939726,13.86548495,130.12,130.07,15.52138495]
[1744522940045,13.86548495,130.11,130.07,1.6559]
[1744522941547,21.55128495,130.11,130.07,1.6559]
[1744522941849,21.55128495,130.11,130.07,9.3439]
[1744522941850,13.86548495,130.11,130.07,9.3439]
[1744522943350,21.55068495,130.12,130.07,9.3439]
[1744522944747,13.86548495,130.11,130.07,9.3439]
[1744522945048,13.86548495,130.11,130.07,1.6559]
[1744522945245,13.86548495,130.09,130.06,7.48]
[1744522946628,18.64964886,130.13,130.05,0.063]
[1744522946629,13.86548495,130.07,130.05,0.063]
[1744522946830,7.6863,130.1,130.05,0.063]
[1744522947031,19.2148,130.11,130.06,13.86548495]
[1744522947032,13.86548495,130.11,130.06,13.86548495]
[1744522947230,21.55068495,130.12,130.07,13.86548495]
[1744522947450,7.6852,130.12,130.07,13.86548495]
[1744522947634,21.55068495,130.12,130.07,13.86548495]
[1744522947835,13.86548495,130.1,130.05,0.063]
[1744522948048,13.86548495,130.1,130.05,13.92848495]
[1744522948731,21.55138495,130.11,130.06,21.55418495]
[1744522948928,13.86548495,130.1,130.06,7.6887]
[1744522949247,8.87334969,130.1,130.06,7.6887]
[1744522951041,8.87334969,130.11,130.06,16.56204969]
[1744522951628,7.6854,130.12,130.06,16.56204969]
[1744522951834,8.87334969,130.11,130.06,7.6887]
[1744522952655,16.55914969,130.11,130.06,7.6887]
[1744522952858,8.87334969,130.1,130.06,7.6887]
[1744522953156,16.55914969,130.11,130.06,7.6887]
[1744522953357,16.55914969,130.11,130.06,16.56204969]
[1744522953738,16.55914969,130.11,130.05,16.62564969]
[1744522955254,8.87334969,130.12,130.06,8.87334969]
[1744522955461,7.6848,130.13,130.07,8.87334969]
[1744522955647,16.55814969,130.13,130.07,8.87334969]
[1744522956636,16.55814969,130.13,130.08,7.6875]
[1744522956837,8.87334969,130.12,130.08,7.6875]
[1744522957336,8.87334969,130.12,130.07,7.6879]
[1744522958263,16.55854969,130.12,130.07,7.6879]
[1744522959277,8.87334969,130.11,130.07,7.6879]
[1744522961988,8.87334969,130.1,130.06,15.1685]
[1744522962449,16.55924969,130.11,130.06,15.1685]
[1744522963158,16.55924969,130.11,130.06,7.6885]
[1744522964890,8.87334969,130.11,130.06,7.6885]
[1744522965171,8.87334969,130.11,130.06,16.56184969]
[1744522965352,7.6846,130.14,130.07,8.87334969]
[1744522965553,8.87334969,130.13,130.07,8.87334969]
[1744522966164,8.87334969,130.11,130.06,16.56184969]
[1744522967670,7.6846,130.14,130.06,16.56184969]
[1744522967861,7.685,130.13,130.07,8.87334969]
[1744522968062,0.0001,130.15,130.09,8.87334969]
[1744522968255,8.87334969,130.13,130.08,8.87334969]
[1744522968457,8.87334969,130.13,130.09,1.6424]
[1744522968759,8.87334969,130.12,130.09,1.6424]
[1744522971169,8.87334969,130.12,130.09,9.3292]
[1744522971378,8.87334969,130.12,130.09,1.6424]
[1744522973674,8.87334969,130.1,130.06,7.6882]
[1744522975379,8.87334969,130.09,130.05,1.6201]
[1744522976878,8.87334969,130.09,130.05,9.3093]
[1744522977857,8.87334969,130.08,130.05,9.3093]
[1744522978876,8.87334969,130.09,130.05,9.3093]
[1744522980569,8.87334969,130.06,130.05,0.063]
[1744522982985,16.56204969,130.06,130.05,0.063]
[1744522983276,35.49602169,130.06,130.05,0.063]
[1744522984388,7.6887,130.06,130.05,0.063]
[1744522984563,34.87334969,130.07,130.05,0.063]
[1744522984761,8.87334969,130.07,130.05,0.063]
[1744522984981,8.87334969,130.08,130.05,0.063]
[1744522985782,8.87334969,130.07,130.05,0.063]
[1744522985988,16.56144969,130.07,130.05,0.063]
[1744522986284,11.4920743,130.07,130.05,0.063]
[1744522986487,3.8039743,130.07,130.05,0.063]
[1744522986889,11.4921743,130.07,130.05,0.063]
[1744522987189,8.87334969,130.06,130.05,0.063]
[1744522987881,16.56204969,130.06,130.05,0.063]
[1744522989282,8.87334969,130.06,130.05,0.063]
[1744522990465,16.56204969,130.06,130.05,0.063]
[1744522992183,7.6881,130.07,130.05,0.063]
[1744522992360,8.87334969,130.06,130.05,0.063]
[1744522994187,16.56204969,130.06,130.05,0.063]
[1744522994483,35.49602169,130.06,130.05,0.063]
[1744522994783,35.63818326,130.06,130.05,0.063]
[1744522995789,7.6884,130.07,130.05,0.063]
[1744522996077,8.87334969,130.06,130.05,0.063]
[1744522996283,16.56204969,130.06,130.05,0.063]
[1744522998388,7.6882,130.07,130.05,0.063]
[1744522998966,8.87334969,130.06,130.05,0.063]
[1744523001495,7.46,130.11,130.05,0.063]
[1744523001790,8.87334969,130.1,130.05,8.93634969]
[1744523002189,7.46,130.11,130.05,0.063]
[1744523002190,8.87334969,130.09,130.05,0.063]
[1744523002495,8.87334969,130.09,130.05,7.7523]
[1744523002798,16.55904969,130.12,130.07,8.87334969]
[1744523003088,8.87334969,130.11,130.06,8.87334969]
[1744523003264,8.87334969,130.12,130.07,8.87334969]
[1744523003465,7.7146,130.13,130.07,8.87334969]
[1744523003691,8.87334969,130.12,130.07,8.87334969]
[1744523004569,8.87334969,130.11,130.07,8.87334969]
[1744523004869,8.87334969,130.11,130.06,16.56204969]
[1744523005288,8.87334969,130.11,130.07,8.87334969]
[1744523006176,8.87334969,130.11,130.07,16.56104969]
[1744523007299,0.03,130.13,130.09,8.87334969]
[1744523008489,0.03,130.13,130.1,16.55964969]
[1744523009187,0.03,130.13,130.1,7.6863]
[1744523010077,0.03,130.13,130.07,8.87334969]
[1744523010275,0.03,130.13,130.09,8.87334969]
[1744523010800,0.03,130.13,130.09,16.56004969]
[1744523015400,0.03,130.13,130.06,7.46]
[1744523015401,8.87334969,130.12,130.06,7.46]
[1744523015703,8.90334969,130.13,130.08,8.87334969]
[1744523015895,0.03,130.13,130.09,8.87334969]
[1744523016198,0.03,130.13,130.12,8.87334969]
[1744523016397,0.03,130.13,130.11,8.87334969]
[1744523016588,0.03,130.13,130.12,8.87334969]
[1744523017288,0.03,130.13,130.12,16.55854969]
[1744523017491,0.03,130.13,130.12,7.6852]
[1744523017891,0.03,130.13,130.09,10.41614969]
[1744523018094,8.87334969,130.11,130.07,6.6192]
[1744523018783,8.87334969,130.12,130.07,15.49254969]
[1744523019279,8.87334969,130.12,130.07,23.18044969]
[1744523020097,16.58814969,130.13,130.08,8.87334969]
[1744523020300,16.58814969,130.13,130.07,14.3071]
[1744523020598,8.87334969,130.11,130.06,25.57524969]
[1744523020902,16.58814969,130.13,130.08,8.87334969]
[1744523021604,8.90334969,130.13,130.08,16.56044969]
[1744523021907,0.03,130.13,130.09,8.87334969]
[1744523022892,16.58804969,130.13,130.08,16.56044969]
[1744523023088,7.7147,130.13,130.08,16.56044969]
[1744523023294,8.90334969,130.13,130.08,16.56044969]
[1744523023806,8.90334969,130.13,130.09,8.87334969]
[1744523024006,0.03,130.13,130.09,8.87334969]
[1744523025807,0.03,130.13,130.09,16.56004969]
[1744523028307,0.03,130.13,130.11,8.87334969]
[1744523028688,0.03,130.13,130.11,10.53474969]
[1744523029197,0.03,130.13,130.12,34.87334969]
[1744523030307,0.03,130.13,130.12,61.35036012]
[1744523030609,0.03,130.13,130.12,61.63468326]
[1744523030800,0.03,130.13,130.12,35.63468326]
[1744523035821,0.0001,130.13,130.12,35.63468326]
[1744523036125,0.0001,130.15,130.13,25.68483357]
[1744523036325,0.03,130.17,130.16,26.0]
[1744523036497,0.03,130.17,130.16,42.59767283]
[1744523036702,0.03,130.17,130.16,61.38948326]
[1744523037407,0.03,130.18,130.17,19.07613357]
[1744523037606,0.03,130.19,130.18,27.94948326]
[1744523037821,0.03,130.19,130.18,35.63108326]
[1744523039104,0.03,130.19,130.18,43.07108326]
[1744523039307,0.03,130.19,130.18,35.63108326]
[1744523039506,0.03,130.19,130.18,43.07108326]
[1744523041927,0.03,130.21,130.19,36.12168326]
[1744523042227,0.03,130.21,130.2,27.94948326]
[1744523042731,0.03,130.22,130.21,27.94948326]
[1744523042927,0.03,130.22,130.21,291.46948326]
[1744523043102,0.03,130.22,130.21,306.58938326]
[1744523044003,0.0001,130.22,130.21,306.58938326]
[1744523044617,0.03,130.24,130.23,45.07613357]
[1744523044823,0.03,130.24,130.23,61.38948326]
[1744523045019,0.0001,130.24,130.23,61.38948326]
[1744523045326,0.0001,130.26,130.24,25.68483357]
[1744523045503,0.0001,130.26,130.25,8.87334969]
[1744523045699,6.6051,130.35,130.29,26.0]
[1744523045931,1.6656,130.36,130.32,8.87334969]
[1744523046225,6.6051,130.39,130.35,8.87334969]
[1744523046401,6.6051,130.39,130.36,7.44]
[1744523046604,6.6051,130.39,130.37,7.44]
[1744523046927,1.6656,130.4,130.37,7.44]
[1744523047121,10.53894969,130.4,130.37,7.44]
[1744523047320,23.13559326,130.4,130.36,13.80109326]
[1744523047527,13.80109326,130.38,130.35,7.44]
[1744523047825,13.80109326,130.39,130.35,7.44]
[1744523048021,0.03,130.38,130.35,7.44]
[1744523049103,13.83109326,130.38,130.33,13.80109326]
[1744523049307,13.80109326,130.35,130.33,7.44]
[1744523049507,13.80109326,130.34,130.29,21.47599326]
[1744523049714,13.80109326,130.33,130.3,7.44]
[1744523050617,13.80109326,130.33,130.31,7.44]
[1744523050817,21.47389326,130.33,130.31,7.44]
[1744523051816,7.6728,130.33,130.31,7.44]
[1744523052042,13.80109326,130.33,130.31,7.44]
[1744523052213,21.47329326,130.34,130.31,7.44]
[1744523053230,13.80109326,130.32,130.27,13.80109326]
[1744523053411,13.80109326,130.31,130.28,7.44]
[1744523054434,13.80109326,130.32,130.28,7.44]
[1744523054635,7.674,130.31,130.28,7.44]
[1744523054839,21.47509326,130.31,130.27,7.44]
[1744523055441,7.674,130.31,130.27,21.24109326]
[1744523059925,81.0,130.33,130.3,13.80109326]
[1744523060235,81.0,130.33,130.31,13.80109326]
[1744523061756,1.5702,130.37,130.32,21.24109326]
[1744523061917,18.67964886,130.38,130.34,13.80109326]
[1744523063115,26.34994886,130.38,130.34,13.80109326]
[1744523063321,40.15104212,130.38,130.33,21.24109326]
[1744523063820,0.03,130.37,130.33,21.24109326]
[1744523065543,14.1154164,130.37,130.33,7.44]
[1744523065747,13.80109326,130.36,130.33,7.44]
[1744523065938,14.1154164,130.37,130.33,7.44]
[1744523066551,0.31432314,130.37,130.33,21.24109326]
[1744523067643,7.98512314,130.37,130.33,21.24109326]
[1744523068151,0.03,130.37,130.33,7.44]
[1744523068338,0.03,130.37,130.35,13.80109326]
[1744523068653,0.03,130.37,130.33,28.91379326]
[1744523068951,7.7005,130.37,130.33,21.24109326]
[1744523069646,0.03,130.37,130.34,13.80109326]
[1744523070048,13.83109326,130.37,130.33,7.6727]
[1744523070255,13.83109326,130.37,130.32,21.22109326]
[1744523070435,13.83109326,130.37,130.33,13.80109326]
[1744523070436,0.03,130.37,130.33,13.80109326]
[1744523070728,0.03,130.37,130.34,13.80109326]
[1744523070936,0.03,130.37,130.35,13.80109326]
[1744523075661,0.03,130.37,130.36,13.80109326]
[1744523076158,0.03,130.37,130.35,21.47259326]
[1744523077770,0.03,130.37,130.36,13.80109326]
[1744523079378,0.03,130.37,130.34,21.47309326]
[1744523079555,13.83109326,130.37,130.35,7.42]
[1744523079862,0.03,130.37,130.35,7.42]
[1744523082663,13.83109326,130.37,130.35,7.42]